{"text_format":"1","workbook":"xlsx","n_sheets":6,"sheets":["PLANTILLA","IMPORTANTE","Portada","Tipo y subtipo cotizantes","Subsistemas x Tipo de Pago","TABLAS"],"not_rendered":{"charts":0,"images":8,"macros":1,"external_links":0,"defined_names":36,"comments":0,"pivot_tables":0},"unopened":[],"bounds":{"document_bytes":16777216,"sheet_cells":100000,"rows_first":2000,"rows_last":500,"rows_between":2000,"halvings":0,"cell_chars":16384,"cell_head_chars":4096},"cells_cut":0,"cells_raw":0,"read":"whole","date_system":"1900"}

{"sheet":"PLANTILLA","index":0,"n_rows":7,"n_cols":52,"rows_kept":7,"cut":false,"hidden":false,"merged":[[4,1,4,13],[4,14,4,15],[4,17,4,21],[4,22,4,29]]}
[null,null,null,null,null,null,null,null,null,null,null,null,null,null,null,null,null,null,null,null,null,null,null,null,null,null,null,null,null,null,null,null,null,null,null,null,null,null,null,null,null,null,null,null,null,null,null,null,null,null,null,"UGPP"]
[null,"PF-FOR-004","V 9.0",null,null,null,null,null,null,null,null,null,null,null,null,null,null,null,null,null,null,null,null,null,null,null,null,null,null,null,null,null,null,null,null,null,null,null,null,null,null,null,null,null,null,null,null,null,null,null,"TIPO DE PAGO"]
[null,"TIPO DOCUMENTO APORTANTE","NUMERO DOCUMENTO APORTANTE","RAZON SOCIAL","NATURALEZA JURIDICA","TIPO DE APORTANTE","APORTA ESAP Y MEN","SUJETO PASIVO DEL IMPUESTO SOBRE LA RENTA PARA LA EQUIDAD CREE"]
[]
[null,"Datos básicos del trabajador",null,null,null,null,null,null,null,null,null,null,null,null,"Periodo nómina",null,null,"Novedades",null,null,null,null,"Reporte de días",null,null,null,null,null,null,null,null,null,null,null,null,null,null,null,null,null,null,null,null,null,null,null,null,null,null,null,"cuenta contable"]
["ORDEN","TIPO COTIZANTE","SUBTIPO COTIZANTE","CONDICION ESPECIAL EMPRESA","CAMPO RESERVADO PARA LA UGPP","EXTRANJERO NO OBLIGADO A COTIZAR PENSION","COLOMBIANO EN EL EXTERIOR","ACTIVIDAD ALTO RIESGO PENSION","TIPO DOCUMENTO ACTUAL DEL COTIZANTE","NUMERO DOCUMENTO ACTUAL DEL COTIZANTE","TIPO DOCUMENTO CON EL QUE REALIZO APORTES DEL COTIZANTE","NUMERO DOCUMENTO CON EL QUE REALIZO APORTES DEL COTIZANTE","NOMBRE COTIZANTE","CARGO DEL TRABAJADOR","ANIO","MES","SALARIO INTEGRAL","NOVEDAD INCAPACIDAD","NOVEDAD LIC.MATERNIDAD O PATERNIDAD","NOVEDAD DE PERMISO O LICENCIA REMUNERADA","NOVEDAD DE SUSPENSION","NOVEDAD VACACIONES","NUMERO DIAS TRABAJADOS EN EL MES","NUMERO DIAS INCAPACIDADES EN EL MES","NUMERO DIAS LICENCIA DE MATERNIDAD O PATERNIDAD","NUMERO DIAS DE PERMISO O LICENCIA  REMUNERADAS EN EL MES","NUMERO DIAS DE SUSPENSION, PERMISO O LICENCIA  NO REMUNERADAS EN EL MES","NUMERO DE DIAS VACACIONES DISFRUTADAS EN EL MES","NUMERO DIAS DE HUELGA LEGALMENTE DECLARADA","TOTAL DIAS REPORTADOS EN EL MES","INGRESO","FECHA ING","RETIRO","FECHA RET","CAMPO RESERVADO PARA LA UGPP","CAMPO RESERVADO PARA LA UGPP","SALARIO BASICO","CAMPO RESERVADO PARA LA UGPP","CAMPO RESERVADO PARA LA UGPP","CAMPO RESERVADO PARA LA UGPP","OBSERVACIONES APORTANTE","CAMPO RESERVADO PARA LA UGPP","CAMPO RESERVADO PARA LA UGPP","CAMPO RESERVADO PARA LA UGPP","CAMPO RESERVADO PARA LA UGPP","CAMPO RESERVADO PARA LA UGPP","CAMPO RESERVADO PARA LA UGPP","CAMPO RESERVADO PARA LA UGPP","CAMPO RESERVADO PARA LA UGPP","CAMPO RESERVADO PARA LA UGPP","NOMBRE CONCEPTO DE PAGO APORTANTE"]
[1,null,0,null,null,null,null,null,null,null,null,null,null,null,null,null,null,{"$f":"IF(X7>0,\"X\",\"\")","v":""},{"$f":"IF(Y7>0,\"X\",\"\")","v":""},{"$f":"IF(Z7>0,\"X\",\"\")","v":""},{"$f":"IF((AA7+AC7)>0,\"X\",\"\")","v":""},{"$f":"IF(AB7>0,\"X\",\"\")","v":"X"},0,0,0,0,0,30,0,{"$f":"IF(SUM(W7:AC7)=0,0,IF(AND(SUM(W7:AC7)<30,AE7=\"\",AG7=\"\"),\"Ingreso o Retiro\",IF(SUM(W7:AC7)>30,\"Días mayores a 30\",IF(AND(AE7=\"X\",OR(YEAR(AF7)<>O7,MONTH(AF7)<>P7)),\"Fecha ing.incorrecta\",IF(AND(AG7=\"X\",OR(YEAR(AH7)<>O7,MONTH(AH7)<>P7)),\"Fecha Ret.incorrecta\",SUM(W7:AC7))))))","v":30},{"$f":"IF(AF7=\"\",\"\",\"X\")","v":""},null,{"$f":"IF(AH7=\"\",\"\",\"X\")","v":""}]

{"sheet":"IMPORTANTE","index":1,"n_rows":0,"n_cols":0,"rows_kept":0,"cut":false,"hidden":true,"merged":[]}

{"sheet":"Portada","index":2,"n_rows":28,"n_cols":21,"rows_kept":28,"cut":false,"hidden":true,"merged":[[27,0,28,19],[27,20,28,23],[25,0,25,1],[25,2,25,4],[25,5,25,7],[25,8,25,16],[25,17,25,19],[25,20,25,23],[24,20,24,23],[23,0,23,1],[23,2,23,4],[23,5,23,7],[23,8,23,16],[23,17,23,19],[23,20,23,23],[24,0,24,1],[24,2,24,4],[24,5,24,7],[24,8,24,16],[24,17,24,19],[22,20,22,23],[21,0,21,1],[21,2,21,4],[21,5,21,7],[21,8,21,16],[21,17,21,19],[21,20,21,23],[22,0,22,1],[22,2,22,4],[22,5,22,7],[22,8,22,16],[22,17,22,19],[20,20,20,23],[19,0,19,1],[19,2,19,4],[19,5,19,7],[19,8,19,16],[19,17,19,19],[19,20,19,23],[20,0,20,1],[20,2,20,4],[20,5,20,7],[20,8,20,16],[20,17,20,19],[17,20,17,23],[18,0,18,1],[18,2,18,4],[18,5,18,7],[18,8,18,16],[18,17,18,19],[18,20,18,23],[17,0,17,1],[17,2,17,4],[17,5,17,7],[17,8,17,16],[17,17,17,19],[12,0,12,3],[12,4,12,9],[12,10,12,16],[12,17,12,23],[15,0,15,23],[9,0,9,3],[9,4,9,9],[9,10,9,16],[9,17,9,23],[10,0,11,3],[10,4,11,9],[10,10,11,16],[10,17,11,23],[0,0,4,3],[0,4,4,16],[0,17,4,23],[6,0,6,23],[8,0,8,3],[8,4,8,9],[8,10,8,16],[8,17,8,23]]}
["PF-FOR-004",null,null,null,"REQUERIMIENTO INFORMACIÓN\n (Nómina Salarios)"]
[]
[]
[]
[]
[]
["HOJA DE APROBACION"]
[]
[null,null,null,null,"Preparado por:",null,null,null,null,null,"Revisado por:",null,null,null,null,null,null,"Aprobado por:"]
["Nombre:",null,null,null,"Fabio López Silva",null,null,null,null,null,"Benjamín Estrella Aguilar",null,null,null,null,null,null,"Benjamín Estrella Aguilar"]
["Cargo:",null,null,null,"Profesional Especializado Subdirección Determinación de Obligaciones",null,null,null,null,null,"Subdirector Determinación de Obligaciones",null,null,null,null,null,null,"Subdirector Determinación de Obligaciones"]
[]
["Fecha",null,null,null,"Septiembre de 2016"]
[]
[]
["HOJA DE CONTROL DE CAMBIOS"]
[]
["Versión",null,"Acción",null,null,"Fecha",null,null,"Descripción de la acción",null,null,null,null,null,null,null,null,"Numeral",null,null,"Responsable"]
["1.0",null,"Creación",null,null,{"$f":"+R13","v":"00:00:00"},null,null,"Creación como formato",null,null,null,null,null,null,null,null,null,null,null,"Olga Lucía López"]
["1.1",null,"Cambio de forma",null,null,"2012-02-08",null,null,"Modificación de Forma",null,null,null,null,null,null,null,null,null,null,null,"Olga Lucía López"]
["7.0",null,"Cambio de fondo",null,null,"2014-07-22",null,null,"Se incluyen los campos para detallar los días trabajados.\nSe incluyen las instrucciones en la hoja de nómina.",null,null,null,null,null,null,null,null,null,null,null,"Olga Lucía López"]
["7.1",null,"Cambio de forma",null,null,"2014-08-22",null,null,"Se modifican los logos de acuerdo a la nueva imagen de la entidad",null,null,null,null,null,null,null,null,null,null,null,"Carlos Andrés Gutiérrez"]
["7.2",null,"Cambio de forma",null,null,"2015-08-13",null,null,"Se modifican los logos de acuerdo a la nueva imagen del gobierno",null,null,null,null,null,null,null,null,null,null,null,"Carlos Andrés Gutiérrez"]
["8.0",null,"Cambio de fondo",null,null,"2016-01-29",null,null,"Se incluyen campos para prestaciones sociales, beneficios adicionales y otros pagos, según Acuerdo 1035/2015",null,null,null,null,null,null,null,null,null,null,null,"Mario Arenas"]
["8.1",null,"Cambio de forma",null,null,"2016-05-25",null,null,"Se aclara el nombre de los campos 20 y 21 en las hojas instructivo y nómina",null,null,null,null,null,null,null,null,null,null,null,"Mario Arenas"]
["9.0",null,"Cambio de fondo",null,null,null,null,null,"Se homologa formato con la versión de sede electrónica.\nSe eliminan las hojas Instructivo y Pagos No Incluidos en IBC.",null,null,null,null,null,null,null,null,null,null,null,"Benjamín Estrella"]
[]
["Antes de usar este documento revise el listado maestro  de documentos y verifique que esta es la última versión.",null,null,null,null,null,null,null,null,null,null,null,null,null,null,null,null,null,null,null,"AP-FOR-006 V 2.1"]

{"sheet":"Tipo y subtipo cotizantes","index":3,"n_rows":192,"n_cols":13,"rows_kept":192,"cut":false,"hidden":true,"merged":[[130,0,130,1],[162,0,162,1],[175,0,175,1],[184,0,184,1],[72,0,72,12],[73,0,74,0],[73,1,74,1],[73,2,73,12],[107,0,107,2],[121,0,121,1],[38,0,39,0],[38,1,39,1],[38,2,38,11],[2,0,2,9],[3,0,4,0],[3,1,4,1],[3,2,3,9],[37,0,37,11]]}
[]
[]
["Tabla 17. R10- Regla de validación – Tipo de Cotizante  Vs Subsistema al que aporta"]
["TIPO COTIZANTE","CODIGO","SUBSISTEMA"]
[null,null,"SALUD","PENSION","ALTO RIESGO","FSP","ARP","CCF","ICBF","SENA"]
["DEPENDIENTE",1,"X","X","X","X","X","X","X","X",null,null,{"$f":"B6&\". \"&A6","v":"1. DEPENDIENTE"}]
["SERVICIO DOMESTICO",2,"X","X","X","X","X","X",null,null,null,null,{"$f":"B7&\". \"&A7","v":"2. SERVICIO DOMESTICO"}]
["INDEPENDIENTE",3,"X","X","X","X",null,null,null,null,null,null,"3. INDEPENDIENTE"]
["MADRE COMUNITARIA",4,"X",null,null,null,null,null,null,null,null,null,"4. MADRE COMUNITARIA"]
["APRENDICES DEL SENA EN ETAPA LECTIVA",12,"X",null,null,null,null,null,null,null,null,null,"12. APRENDICES DEL SENA EN ETAPA LECTIVA"]
["DESEMPLEADO CON SUBSIDIO DE CAJA DE COMPENSACION FAMILIAR",15,"X",null,null,null,null,null,null,null,null,null,"15. DESEMPLEADO CON SUBSIDIO DE CAJA DE COMPENSACION FAMILIAR"]
["INDEPENDIENTE AGREMIADO O ASOCIADO",16,"X","X","X","X",null,null,null,null,null,null,"16. INDEPENDIENTE AGREMIADO O ASOCIADO"]
["FUNCIONARIOS PUBLICOS SIN TOPE MAXIMO DE IBC",18,"X","X","X","X","X","X","X","X",null,null,"18. FUNCIONARIOS PUBLICOS SIN TOPE MAXIMO DE IBC"]
["APRENDICES DEL SENA EN ETAPA PRODUCTIVA",19,"X",null,null,null,"X",null,null,null,null,null,"19. APRENDICES DEL SENA EN ETAPA PRODUCTIVA"]
["ESTUDIANTES (REGIMEN ESPECIAL LEY 789 DE 2002)",20,"X","X","X","X","X",null,null,null,null,null,"20. ESTUDIANTES (REGIMEN ESPECIAL LEY 789 DE 2002)"]
["ESTUDIANTES DE POSTGRADO EN SALUD",21,"X",null,null,null,"X",null,null,null,null,null,"21. ESTUDIANTES DE POSTGRADO EN SALUD"]
["PROFESOR DE ESTABLECIMIENTO PARTICULAR",22,"X","X","X","X","X","X","X","X",null,null,"22. PROFESOR DE ESTABLECIMIENTO PARTICULAR"]
["DEPENDIENTE ENTIDADES O UNIVERSIDADES PUBLICAS CON REGIMEN ESPECIAL EN SALUD",30,"X","X","X","X","X","X","X","X",null,null,"30. DEPENDIENTE ENTIDADES O UNIVERSIDADES PUBLICAS CON REGIMEN ESPECIAL EN SALUD"]
["COOPERADOS O PRECOOPERATIVAS DE TRABAJO ASOCIADO",31,"X","X","X","X","X","X","X","X",null,null,"31. COOPERADOS O PRECOOPERATIVAS DE TRABAJO ASOCIADO"]
["COTIZANTE MIEMBRO DE LA CARRERA DIPLOMATICA O CONSULAR DE UN PAIS EXTRANJERO O FUNCIONARIO DE ORGANISMO MULTILATERAL",32,null,null,null,null,null,null,null,null,null,null,"32. COTIZANTE MIEMBRO DE LA CARRERA DIPLOMATICA O CONSULAR DE UN PAIS EXTRANJERO O FUNCIONARIO DE ORGANISMO MULTILATERAL"]
["BENEFICIARIO DEL FONDO DE SOLIDARIDAD PENSIONAL",33,"X","X","X","X",null,null,null,null,null,null,"33. BENEFICIARIO DEL FONDO DE SOLIDARIDAD PENSIONAL"]
["CONCEJAL MUNICIPAL O DISTRITAL O EDIL DE JUNTA ADMINISTRATIVA LOCAL QUE PERCIBE HONORARIOS AMPARADO POR POLIZA DE SALUD",34,null,"X","X","X",null,null,null,null,null,null,"34. CONCEJAL MUNICIPAL O DISTRITAL O EDIL DE JUNTA ADMINISTRATIVA LOCAL QUE PERCIBE HONORARIOS AMPARADO POR POLIZA DE SALUD"]
["CONCEJAL MUNICIPAL O DISTRITAL QUE PERCIBE HONORARIOS NO AMPARADO CON PÓLIZA DE SALUD",35,"X","X","X","X","X",null,null,null,null,null,"35. CONCEJAL MUNICIPAL O DISTRITAL QUE PERCIBE HONORARIOS NO AMPARADO CON PÓLIZA DE SALUD"]
["CONCEJAL MUNICIPAL O DISTRITAL QUE PERCIBE HONORARIOS NO AMPARADO CON PÓLIZA DE SALUD BENEFICIARIO DEL FONDO DE SOLIDARIDAD PENSIONAL.",36,"X","X","X","X","X",null,null,null,null,null,"36. CONCEJAL MUNICIPAL O DISTRITAL QUE PERCIBE HONORARIOS NO AMPARADO CON PÓLIZA DE SALUD BENEFICIARIO DEL FONDO DE SOLIDARIDAD PENSIONAL."]
["BENEFICIARIO UPC ADICIONAL",40,"X",null,null,null,null,null,null,null,null,null,"40. BENEFICIARIO UPC ADICIONAL"]
["BENEFICIARIO SIN INGRESOS CON PAGO POR TERCERO",41,"X",null,null,null,null,null,null,null,null,null,"41. BENEFICIARIO SIN INGRESOS CON PAGO POR TERCERO"]
["COTIZANTE PAGO SOLO SALUD ARTICULO 2 LEY 1250 DE 2008 (INDEPENDIENTES DE BAJOS INGRESOS)",42,"X",null,null,null,null,null,null,null,null,null,"42. COTIZANTE PAGO SOLO SALUD ARTICULO 2 LEY 1250 DE 2008 (INDEPENDIENTES DE BAJOS INGRESOS)"]
["COTIZANTE VOLUNTARIO A PENSIONES CON PAGO POR TERCERO",43,"X","X","X","X",null,null,null,null,null,null,"43. COTIZANTE VOLUNTARIO A PENSIONES CON PAGO POR TERCERO"]
["COTIZANTE DEPENDIENTE DE EMPLEO DE EMERGENCIA CON DURACION MAYOR O IGUAL A UN MES",44,"X","X","X","X","X",null,null,null,null,null,"44. COTIZANTE DEPENDIENTE DE EMPLEO DE EMERGENCIA CON DURACION MAYOR O IGUAL A UN MES"]
["COTIZANTE DEPENDIENTE DE EMPLEO DE EMERGENCIA CON DURACION MENOR A UN MES",45,"X",null,null,null,"X",null,null,null,null,null,"45. COTIZANTE DEPENDIENTE DE EMPLEO DE EMERGENCIA CON DURACION MENOR A UN MES"]
["TRABAJADOR DEPENDIENTE DE ENTIDAD BENEFICIARIA DEL SISTEMA GENERAL DE PARTICIPACIONES - APORTES PATRONALES",47,"X","X","X","X",null,null,null,null,null,null,"47. TRABAJADOR DEPENDIENTE DE ENTIDAD BENEFICIARIA DEL SISTEMA GENERAL DE PARTICIPACIONES - APORTES PATRONALES"]
["TRABAJADOR DE TIEMPO PARCIAL DECRETO 2616 DE 2013 AFILIADO AL RÉGIMEN SUBSIDIADO EN SALUD",51,null,"X","X","X","X","X",null,null,null,null,"51. TRABAJADOR DE TIEMPO PARCIAL DECRETO 2616 DE 2013 AFILIADO AL RÉGIMEN SUBSIDIADO EN SALUD"]
["BENEFICIARIO DEL MECANISMO DE PROTECCIÓN AL CESANTE",52,"X","X","X","X",null,null,null,null,null,null,"52. BENEFICIARIO DEL MECANISMO DE PROTECCIÓN AL CESANTE"]
["AFILIADO PARTICIPE",53,"X","X","X","X","X",null,null,null,null,null,"53. AFILIADO PARTICIPE"]
["PREPENSIONADO DE ENTIDAD EN LIQUIDACIÓN.",54,null,"X","X","X",null,null,null,null,null,null,"54. PREPENSIONADO DE ENTIDAD EN LIQUIDACIÓN."]
[]
[]
["Tabla 14. R07- Regla de validación – Tipo de Cotizante  Vs Subtipo de Cotizante"]
["TIPO COTIZANTE","CODIGO","Subtipos de cotizantes"]
[null,null,1,2,3,4,5,6,9,10,11,12]
["DEPENDIENTE",1,"X",null,"X","X","X","X","X",null,"X","X"]
["SERVICIO DOMESTICO",2,"X",null,"X","X","X"]
["INDEPENDIENTE",3,null,"X","X","X","X","X","X","X","X","X"]
["MADRE COMUNITARIA",4]
["APRENDICES DEL SENA EN ETAPA LECTIVA",12]
["DESEMPLEADO CON SUBSIDIO DE CAJA DE COMPENSACION FAMILIAR",15]
["INDEPENDIENTE AGREMIADO O ASOCIADO",16,null,"X","X","X","X",null,"X","X","X"]
["FUNCIONARIOS PUBLICOS SIN TOPE MAXIMO DE IBC",18,"X",null,"X","X","X","X","X"]
["APRENDICES DEL SENA EN ETAPA PRODUCTIVA",19]
["ESTUDIANTES (REGIMEN ESPECIAL LEY 789 DE 2002)",20]
["ESTUDIANTES DE POSTGRADO EN SALUD",21]
["PROFESOR DE ESTABLECIMIENTO PARTICULAR",22,"X",null,"X","X","X","X","X"]
["DEPENDIENTE ENTIDADES O UNIVERSIDADES PUBLICAS CON REGIMEN ESPECIAL EN SALUD",30,"X",null,"X","X","X","X","X"]
["COOPERADOS O PRECOOPERATIVAS DE TRABAJO ASOCIADO",31,"X",null,"X","X","X"]
["COTIZANTE MIEMBRO DE LA CARRERA DIPLOMATICA O CONSULAR DE UN PAIS EXTRANJERO O FUNCIONARIO DE ORGANISMO MULTILATERAL",32,"X",null,"X","X","X","X","X"]
["BENEFICIARIO DEL FONDO DE SOLIDARIDAD PENSIONAL",33]
["CONCEJAL MUNICIPAL O DISTRITAL O EDIL DE JUNTA ADMINISTRATIVA LOCAL QUE PERCIBE HONORARIOS AMPARADO POR POLIZA DE SALUD",34,null,"X","X","X","X","X"]
["CONCEJAL MUNICIPAL O DISTRITAL QUE PERCIBE HONORARIOS NO AMPARADO CON PÓLIZA DE SALUD",35,null,"X","X","X","X","X"]
["CONCEJAL MUNICIPAL O DISTRITAL QUE PERCIBE HONORARIOS NO AMPARADO CON PÓLIZA DE SALUD BENEFICIARIO DEL FONDO DE SOLIDARIDAD PENSIONAL.",36]
["BENEFICIARIO UPC ADICIONAL",40]
["BENEFICIARIO SIN INGRESOS CON PAGO POR TERCERO",41]
["COTIZANTE PAGO SOLO SALUD ARTICULO 2 LEY 1250 DE 2008 (INDEPENDIENTES DE BAJOS INGRESOS)",42]
["COTIZANTE VOLUNTARIO A PENSIONES CON PAGO POR TERCERO",43]
["COTIZANTE DEPENDIENTE DE EMPLEO DE EMERGENCIA CON DURACION MAYOR O IGUAL A UN MES",44,"X",null,"X","X","X"]
["COTIZANTE DEPENDIENTE DE EMPLEO DE EMERGENCIA CON DURACION MENOR A UN MES",45]
["TRABAJADOR DEPENDIENTE DE ENTIDAD BENEFICIARIA DEL SISTEMA GENERAL DE PARTICIPACIONES - APORTES PATRONALES",47,"X",null,"X","X","X","X","X"]
["TRABAJADOR DE TIEMPO PARCIAL DECRETO 2616 DE 2013 AFILIADO AL RÉGIMEN SUBSIDIADO EN SALUD",51,"X",null,"X","X","X","X","X"]
["BENEFICIARIO DEL MECANISMO DE PROTECCIÓN AL CESANTE",52,null,"X","X","X","X","X"]
["AFILIADO PARTICIPE",53,"X",null,"X","X","X","X","X"]
["PREPENSIONADO DE ENTIDAD EN LIQUIDACIÓN.",54]
[]
[]
["Tabla 9.  R04 - Regla de validación – Tipo de Cotizante  Vs Tipo  de Aportantes"]
["TIPO COTIZANTE","CODIGO","Tipo de Aportante"]
[null,null,1,3,5,6,2,4,8,7,9,10,11]
["DEPENDIENTE",1,"X","X",null,"X"]
["SERVICIO DOMESTICO",2,null,null,null,null,"X"]
["INDEPENDIENTE",3,null,null,null,null,"X",null,null,null,"X"]
["MADRE COMUNITARIA",4,null,null,null,null,null,null,null,"X"]
["APRENDICES DEL SENA EN ETAPA LECTIVA",12,"X","X",null,"X"]
["DESEMPLEADO CON SUBSIDIO DE CAJA DE COMPENSACION FAMILIAR",15,"X"]
["INDEPENDIENTE AGREMIADO O ASOCIADO",16,null,null,null,null,null,"X"]
["FUNCIONARIOS PUBLICOS SIN TOPE MAXIMO DE IBC",18,"X","X"]
["APRENDICES DEL SENA EN ETAPA PRODUCTIVA",19,"X","X",null,"X"]
["ESTUDIANTES (REGIMEN ESPECIAL LEY 789 DE 2002)",20,"X","X",null,"X"]
["ESTUDIANTES DE POSTGRADO EN SALUD",21,"X","X",null,"X"]
["PROFESOR DE ESTABLECIMIENTO PARTICULAR",22,"X"]
["DEPENDIENTE ENTIDADES O UNIVERSIDADES PUBLICAS CON REGIMEN ESPECIAL EN SALUD",30,"X"]
["COOPERADOS O PRECOOPERATIVAS DE TRABAJO ASOCIADO",31,null,null,"X"]
["COTIZANTE MIEMBRO DE LA CARRERA DIPLOMATICA O CONSULAR DE UN PAIS EXTRANJERO O FUNCIONARIO DE ORGANISMO MULTILATERAL",32,null,null,null,"X"]
["BENEFICIARIO DEL FONDO DE SOLIDARIDAD PENSIONAL",33,null,null,null,null,"X"]
["CONCEJAL MUNICIPAL O DISTRITAL O EDIL DE JUNTA ADMINISTRATIVA LOCAL QUE PERCIBE HONORARIOS AMPARADO POR POLIZA DE SALUD",34,null,null,null,null,null,null,"X"]
["CONCEJAL MUNICIPAL O DISTRITAL QUE PERCIBE HONORARIOS NO AMPARADO CON PÓLIZA DE SALUD",35,null,null,null,null,null,null,"X"]
["CONCEJAL MUNICIPAL O DISTRITAL QUE PERCIBE HONORARIOS NO AMPARADO CON PÓLIZA DE SALUD BENEFICIARIO DEL FONDO DE SOLIDARIDAD PENSIONAL.",36,null,null,null,null,null,null,"X"]
["BENEFICIARIO UPC ADICIONAL",40,"X","X","X","X","X","X","X","X","X","X"]
["BENEFICIARIO SIN INGRESOS CON PAGO POR TERCERO",41]
["COTIZANTE PAGO SOLO SALUD ARTICULO 2 LEY 1250 DE 2008 (INDEPENDIENTES DE BAJOS INGRESOS)",42,null,null,null,null,"X"]
["COTIZANTE VOLUNTARIO A PENSIONES CON PAGO POR TERCERO",43,null,null,null,null,"X"]
["COTIZANTE DEPENDIENTE DE EMPLEO DE EMERGENCIA CON DURACION MAYOR O IGUAL A UN MES",44,"X"]
["COTIZANTE DEPENDIENTE DE EMPLEO DE EMERGENCIA CON DURACION MENOR A UN MES",45,"X"]
["TRABAJADOR DEPENDIENTE DE ENTIDAD BENEFICIARIA DEL SISTEMA GENERAL DE PARTICIPACIONES - APORTES PATRONALES",47,"X"]
["TRABAJADOR DE TIEMPO PARCIAL DECRETO 2616 DE 2013 AFILIADO AL RÉGIMEN SUBSIDIADO EN SALUD",51,"X"]
["BENEFICIARIO DEL MECANISMO DE PROTECCIÓN AL CESANTE",52,"X"]
["AFILIADO PARTICIPE",53,null,null,null,null,null,null,null,null,null,"X"]
["PREPENSIONADO DE ENTIDAD EN LIQUIDACIÓN.",54,null,null,null,null,null,null,null,null,null,null,"X"]
[]
[]
["Subtipo cotizante  Vs. Aporte a PENSION"]
["SUBTIPO COTIZANTE","CODIGO","Aporte PENSIÓN"]
["DEPENDIENTE PENSIONADO POR VEJEZ ACTIVO",1,null,null,null,null,null,null,null,null,null,null,{"$f":"B110&\". \"&A110","v":"1. DEPENDIENTE PENSIONADO POR VEJEZ ACTIVO"}]
["INDEPENDIENTE PENSIONADO POR VEJEZ ACTIVO",2,null,null,null,null,null,null,null,null,null,null,"2. INDEPENDIENTE PENSIONADO POR VEJEZ ACTIVO"]
["COTIZANTE NO OBLIGADO A COTIZAR A PENSIÓN POR EDAD",3,null,null,null,null,null,null,null,null,null,null,"3. COTIZANTE NO OBLIGADO A COTIZAR A PENSIÓN POR EDAD"]
["COTIZANTE CON REQUISITOS CUMPLIDOS PARA PENSIÓN",4,null,null,null,null,null,null,null,null,null,null,"4. COTIZANTE CON REQUISITOS CUMPLIDOS PARA PENSIÓN"]
["COTIZANTE A QUIEN SE LE HA RECONOCIDO INDEMNIZACIÓN SUSTITUTIVA O DEVOLUCIÓN DE SALDOS",5,null,null,null,null,null,null,null,null,null,null,"5. COTIZANTE A QUIEN SE LE HA RECONOCIDO INDEMNIZACIÓN SUSTITUTIVA O DEVOLUCIÓN DE SALDOS"]
["COTIZANTE PERTENECIENTE A UN RÉGIMEN DE EXCEPTUADO DE PENSIONES A ENTIDADES AUTORIZADAS PARA RECIBIR APORTES EXCLUSIVAMENTE DE UN GRUPO DE SUS PROPIOS TRABAJADORES",6,null,null,null,null,null,null,null,null,null,null,"6. COTIZANTE PERTENECIENTE A UN RÉGIMEN DE EXCEPTUADO DE PENSIONES A ENTIDADES AUTORIZADAS PARA RECIBIR APORTES EXCLUSIVAMENTE DE UN GRUPO DE SUS PROPIOS TRABAJADORES"]
["COTIZANTE PENSIONADO CON MESADA SUPERIOR A 25 SMLMV",9,null,null,null,null,null,null,null,null,null,null,"9. COTIZANTE PENSIONADO CON MESADA SUPERIOR A 25 SMLMV"]
["RESIDENTE EN EL EXTERIOR AFILIADO VOLUNTARIO AL SISTEMA GENERAL DE PENSIONES Y/O  AFILIADO  FACULTATIVO AL SISTEMA DE SUBSIDIO FAMILIAR DECRETO 682 DE 2014",10,null,null,null,null,null,null,null,null,null,null,"10. RESIDENTE EN EL EXTERIOR AFILIADO VOLUNTARIO AL SISTEMA GENERAL DE PENSIONES Y/O  AFILIADO  FACULTATIVO AL SISTEMA DE SUBSIDIO FAMILIAR DECRETO 682 DE 2014"]
["CONDUCTORES DEL SERVICIO PÚBLICO DE TRANSPORTE TERRESTRE AUTOMOTOR INDIVIDUAL DE PASAJEROS EN VEHÍCULOS TAXI DECRETO 1047 DE 2014",11,"X",null,null,null,null,null,null,null,null,null,"11. CONDUCTORES DEL SERVICIO PÚBLICO DE TRANSPORTE TERRESTRE AUTOMOTOR INDIVIDUAL DE PASAJEROS EN VEHÍCULOS TAXI DECRETO 1047 DE 2014"]
["CONDUCTORES SERVICIO TAXI NO APORTE PENSIÓN DEC. 1047",12,null,null,null,null,null,null,null,null,null,null,"12. CONDUCTORES SERVICIO TAXI NO APORTE PENSIÓN DEC. 1047"]
[]
[]
["3. MALLA TIPO DOCUMENTO"]
["DESCRIPCION","SIGLA"]
["CEDULA CIUDADANIA","CC"]
["CEDULA EXTRANJERIA","CE"]
["TARJETA DE IDENTIDAD","TI"]
["PASAPORTE","PA"]
["NIT","NI"]
[]
[]
["4. MALLA MESES"]
["DESCRIPCION","CODIGO"]
["ENERO",1]
["FEBRERO",2]
["MARZO",3]
["ABRIL",4]
["MAYO",5]
["JUNIO",6]
["JULIO",7]
["AGOSTO",8]
["SEPTIEMBRE",9]
["OCTUBRE",10]
["NOVIEMBRE",11]
["DICIEMBRE",12]
[]
[]
["5. MALLA TIPO DE PAGO"]
["DESCRIPCION"]
["TP SALARIAL"]
["TP NO SALARIAL"]
["TP NO SALARIAL MARCADO SALARIAL POR LA UGPP"]
["TP COMPENSACIÓN ORDINARIA"]
["TP COMPENSACIÓN EXTRAORDINARIA"]
["TP NO COMPENSACIÓN"]
["TP NO COMPENSACIÓN MARCADA COMO COMP.EXTRAORDINARIA"]
["TP INCAPACIDAD"]
["TP VACACIONES"]
["TP LICENCIA REMUNERADA"]
["TP NO SALARIAL PUBLICA"]
["TP NO SALARIAL PUBLICA"]
[]
[]
["6. MALLA TIPO DE APORTANTE"]
["DESCRIPCION","CODIGO"]
["EMPLEADOR",1]
["INDEPENDIENTE",2]
["ENTIDADES O UNIVERSIDADES PÚBLICAS CON RÉGIMEN ESPECIAL EN SALUD",3]
["AGREMIACIONES O ASOCIACIONES",4]
["COOPERATIVAS Y PRECOOPERATIVAS DE TRABAJO ASOCIADO",5]
["MISIONES DIPLOMÁTICAS, CONSULARES O DE ORGANISMOS MULTILATERALES NO SOMETIDOS A LA LEGISLACIÓN COLOMBIANA",6]
["ORGANIZACIONES ADMINISTRADORAS DEL PROGRAMA DE HOGARES DE BIENESTAR",7]
["PAGADOR DE APORTES DE LOS CONCEJALES MUNICIPALES O DISTRITALES",8]
["PAGADOR DE APORTES CONTRATO SINDICAL",9]
[]
[]
["7. MALLA NATURALEZA JURIDICA"]
["DESCRIPCION","CODIGO"]
["PÚBLICA",1]
["PRIVADA",2]
["MIXTA",3]
["ORGANISMOS MULTILATERALES",4]
["ENTIDADES DE DERECHO PÚBLICO NO SOMETIDAS A LA LEGISLACIÓN COLOMBIANA",5]
[]
[]
["8. MALLA SUB SISTEMA ASOCIADO"]
["DESCRIPCION","CODIGO"]
["SALUD",1]
["PENSION",2]
["ARL",3]
["CCF",4]
["SENA",5]
["ICBF",6]

{"sheet":"Subsistemas x Tipo de Pago","index":4,"n_rows":20,"n_cols":13,"rows_kept":20,"cut":false,"hidden":true,"merged":[]}
[]
[]
[null,null,null,null,"SUBSISTEMAS"]
[null,"NATURALEZA JURIDICA","TIPO DE APORTANTE","TIPO DE PAGO UGPP","SALUD","PENSION","RIESGOS LABORALES","CAJA DE COMPENSACION","SENA","ICBF","NOMBRE CONCEPTO UGPP"]
[null,"1 Pública\n2 Privada\n3 Mixta\n4 Organismos multilaterales\n5 Entidades de derecho público no sometidas a la legislación colombiana","1 Empleador.\n2 Independiente.\n3 Entidades o Universidades Públicas con régimen especial en Salud.\n4 Agremiaciones o asociaciones.\n5 Cooperativas y Precooperativas de Trabajo Asociado\n6 Misiones diplomáticas, consulares o de organismos multilaterales no sometidos a la legislación colombiana.\n7 Organizaciones Administradoras del Programa de Hogares de Bienestar.\n8 Pagador de aportes de los concejales municipales o distritales.\n9 Pagador de aportes contrato sindical","TP SALARIAL",1,2,3,4,5,6,"SUELDOS\nAPOYO SOSTENIMIENTO\nCOMISIONES\nHORAS EXTRAS\nBONIFICACIONES\nPRIMAS\nVIATICOS\nAUXILIOS\nOTROS PAGOS",null,"1;2;3;4;5;6"]
[null,"2 Privada\n3 Mixta\n4 Organismos multilaterales\n5 Entidades de derecho público no sometidas a la legislación colombiana","1 Empleador.\n2 Independiente.\n3 Entidades o Universidades Públicas con régimen especial en Salud.\n4 Agremiaciones o asociaciones.\n5 Cooperativas y Precooperativas de Trabajo Asociado\n6 Misiones diplomáticas, consulares o de organismos multilaterales no sometidos a la legislación colombiana.\n7 Organizaciones Administradoras del Programa de Hogares de Bienestar.\n8 Pagador de aportes de los concejales municipales o distritales.\n9 Pagador de aportes contrato sindical","TP NO SALARIAL",null,null,null,null,null,null,"BONIFICACIONES\nPRIMAS\nVIATICOS\nAUXILIOS\nOTROS PAGOS"]
[null,"1 Pública\n2 Privada\n3 Mixta\n4 Organismos multilaterales\n5 Entidades de derecho público no sometidas a la legislación colombiana","1 Empleador.\n2 Independiente.\n3 Entidades o Universidades Públicas con régimen especial en Salud.\n4 Agremiaciones o asociaciones.\n5 Cooperativas y Precooperativas de Trabajo Asociado\n6 Misiones diplomáticas, consulares o de organismos multilaterales no sometidos a la legislación colombiana.\n7 Organizaciones Administradoras del Programa de Hogares de Bienestar.\n8 Pagador de aportes de los concejales municipales o distritales.\n9 Pagador de aportes contrato sindical","TP NO SALARIAL MARCADO SALARIAL POR LA UGPP",1,2,3,4,5,6,"BONIFICACIONES\nPRIMAS\nVIATICOS\nAUXILIOS\nOTROS PAGOS",null,"1;2;3;4;5;6"]
[null,"2 Privada\n","5 Cooperativas y Precooperativas de Trabajo Asociado","TP COMPENSACIÓN ORDINARIA",1,2,3,4,5,6,"COMP. ORDINARIA\n",null,"1;2;3;4;5;6"]
[null,"2 Privada\n","5 Cooperativas y Precooperativas de Trabajo Asociado","TP COMPENSACIÓN EXTRAORDINARIA",1,2,3,4,null,null,"COMP. EXTRAORDINARIA\n",null,"1;2;3;4"]
[null,"2 Privada\n","5 Cooperativas y Precooperativas de Trabajo Asociado","TP NO COMPENSACIÓN",null,null,null,null,null,null,"BONIFICACIONES\nPRIMAS\nVIATICOS\nAUXILIOS\nOTROS PAGOS"]
[null,"2 Privada\n","5 Cooperativas y Precooperativas de Trabajo Asociado","TP NO COMPENSACIÓN MARCADA COMO COMP.EXTRAORDINARIA",1,2,3,4,null,null,"BONIFICACIONES\nPRIMAS\nVIATICOS\nAUXILIOS\nOTROS PAGOS",null,"1;2;3;4"]
[null,"1 Pública\n2 Privada\n3 Mixta\n4 Organismos multilaterales\n5 Entidades de derecho público no sometidas a la legislación colombiana","1 Empleador.\n2 Independiente.\n3 Entidades o Universidades Públicas con régimen especial en Salud.\n4 Agremiaciones o asociaciones.\n5 Cooperativas y Precooperativas de Trabajo Asociado\n6 Misiones diplomáticas, consulares o de organismos multilaterales no sometidos a la legislación colombiana.\n7 Organizaciones Administradoras del Programa de Hogares de Bienestar.\n8 Pagador de aportes de los concejales municipales o distritales.\n9 Pagador de aportes contrato sindical","TP INCAPACIDAD",1,2,null,null,null,null,"INCAPACIDADES\n",null,"1;2"]
[null,"1 Pública\n2 Privada\n3 Mixta\n4 Organismos multilaterales\n5 Entidades de derecho público no sometidas a la legislación colombiana","1 Empleador.\n2 Independiente.\n3 Entidades o Universidades Públicas con régimen especial en Salud.\n4 Agremiaciones o asociaciones.\n5 Cooperativas y Precooperativas de Trabajo Asociado\n6 Misiones diplomáticas, consulares o de organismos multilaterales no sometidos a la legislación colombiana.\n7 Organizaciones Administradoras del Programa de Hogares de Bienestar.\n8 Pagador de aportes de los concejales municipales o distritales.\n9 Pagador de aportes contrato sindical","TP VACACIONES",null,null,null,4,5,6,"VACACIONES\n",null,"4;5;6"]
[null,"1 Pública\n2 Privada\n3 Mixta\n4 Organismos multilaterales\n5 Entidades de derecho público no sometidas a la legislación colombiana","1 Empleador.\n2 Independiente.\n3 Entidades o Universidades Públicas con régimen especial en Salud.\n4 Agremiaciones o asociaciones.\n5 Cooperativas y Precooperativas de Trabajo Asociado\n6 Misiones diplomáticas, consulares o de organismos multilaterales no sometidos a la legislación colombiana.\n7 Organizaciones Administradoras del Programa de Hogares de Bienestar.\n8 Pagador de aportes de los concejales municipales o distritales.\n9 Pagador de aportes contrato sindical","TP VACACIONES TERMINACION DE CONTRATO",null,null,null,4,5,6,"VACACIONES TERMINACION DE CONTRATO",null,"4;5;6"]
[null,"1 Pública\n2 Privada\n3 Mixta\n4 Organismos multilaterales\n5 Entidades de derecho público no sometidas a la legislación colombiana","1 Empleador.\n2 Independiente.\n3 Entidades o Universidades Públicas con régimen especial en Salud.\n4 Agremiaciones o asociaciones.\n5 Cooperativas y Precooperativas de Trabajo Asociado\n6 Misiones diplomáticas, consulares o de organismos multilaterales no sometidos a la legislación colombiana.\n7 Organizaciones Administradoras del Programa de Hogares de Bienestar.\n8 Pagador de aportes de los concejales municipales o distritales.\n9 Pagador de aportes contrato sindical","TP LICENCIA REMUNERADA",null,null,null,null,null,null,"LICENCIA REMUNERADA"]
[null,"1 Pública\n","1 Empleador.\n3 Entidades o Universidades Públicas con régimen especial en Salud.\n6 Misiones diplomáticas, consulares o de organismos multilaterales no sometidos a la legislación colombiana.\n7 Organizaciones Administradoras del Programa de Hogares de Bienestar.\n8 Pagador de aportes de los concejales municipales o distritales.\n9 Pagador de aportes contrato sindical","TP NO SALARIAL PUBLICA",null,null,null,null,null,null,"BONIFICACIONES\nPRIMAS\nVIATICOS\nAUXILIOS\nOTROS PAGOS"]
[null,"1 Pública\n","1 Empleador.\n3 Entidades o Universidades Públicas con régimen especial en Salud.\n6 Misiones diplomáticas, consulares o de organismos multilaterales no sometidos a la legislación colombiana.\n7 Organizaciones Administradoras del Programa de Hogares de Bienestar.\n8 Pagador de aportes de los concejales municipales o distritales.\n9 Pagador de aportes contrato sindical","TP NO SALARIAL PUBLICA NO ACEPTADO UGPP","NO VALIDAR","NO VALIDAR","NO VALIDAR","NO VALIDAR","NO VALIDAR","NO VALIDAR","BONIFICACIONES\nPRIMAS\nVIATICOS\nAUXILIOS\nOTROS PAGOS"]
[null,"2 Privada","2 Independiente.","TP CONTRATISTA",1,2,3,null,null,null,"SUELDOS",null,"1;2;3"]
[null,"2 Privada","2 Independiente.","TP NO CONTRATISTA",1,2,null,null,null,null,"SUELDOS",null,"1;2"]
[null,"1 Pública\n2 Privada\n3 Mixta\n4 Organismos multilaterales\n5 Entidades de derecho público no sometidas a la legislación colombiana","1 Empleador.\n3 Entidades o Universidades Públicas con régimen especial en Salud.\n4 Agremiaciones o asociaciones.\n5 Cooperativas y Precooperativas de Trabajo Asociado\n6 Misiones diplomáticas, consulares o de organismos multilaterales no sometidos a la legislación colombiana.\n7 Organizaciones Administradoras del Programa de Hogares de Bienestar.\n8 Pagador de aportes de los concejales municipales o distritales.","TP PRESTACIONES",null,null,null,null,null,null,"CESANTIAS\nINTERESES DE CESANTIAS\nPRIMAS"]

{"sheet":"TABLAS","index":5,"n_rows":119,"n_cols":35,"rows_kept":119,"cut":false,"hidden":true,"merged":[]}
[]
[]
[]
["TIPO DOCUMENTO APORTANTE","NATURALEZA JURIDICA","TIPO DE APORTANTE","APORTA ESAP Y MEN","SUJETO PASIVO DEL IMPUESTO SOBRE LA RENTA PARA LA EQUIDAD CREE","TIPO DE ACTO","TIPO COTIZANTE","SUBTIPO COTIZANTE","CONDICION ESPECIAL EMPRESA","EXTRANJERO NO OBLIGADO A COTIZAR PENSION","COLOMBIANO EN EL EXTERIOR","ACTIVIDAD ALTO RIESGO PENSION","TIPO DOCUMENTO ACTUAL DEL COTIZANTE","AÑO","MES","SALARIO INTEGRAL",null,"LLAVE","GRUPO",null,"NATURALEZA JURIDICA","TIPO DE APORTANTE","LLAVE","GRUPO","TIPO DE PAGO UGPP",null,"TIPO DE PAGO UGPP","GRUPO TP","SUBSISTEMAS",null,"TIPO DE PAGO UGPP","GRUPO TP","NOMBRE CONCEPTO UGPP"]
[null,null,null,null,null,null,null,null,null,null,null,null,null,null,null,null,null,"11","PublicaEmp",null,"1 Pública","1 Empleador.",11,"PublicaEmp","TP SALARIAL","Y5","TP SALARIAL","SAL","1;2;3;4;5;6",null,"TP SALARIAL","SAL","SUELDOS",null,"Pagos realizados al trabajador, que conforman el IBC"]
["NI",1,1,"X","SI","REQUERIMIENTO",1,0,"LEY 590/2000 AÑO 1","X","X","X","CC",2007,1,"X",null,"13","PublicaUniv",null,"1 Pública","1 Empleador.",11,"PublicaEmp","TP INCAPACIDAD","Y6","TP NO SALARIAL MARCADO SALARIAL POR LA UGPP","NOSALX","1;2;3;4;5;6",null,"TP SALARIAL","SAL","APOYO SOSTENIMIENTO",null,"Pagos realizados al trabajador que NO conforman el IBC"]
["CC",2,2,null,"NO","AMPLIACIÓN",2,1,"LEY 590/2000 AÑO 2",null,null,null,"CE",2008,2,null,null,"18","PublicaConc",null,"1 Pública","1 Empleador.",11,"PublicaEmp","TP VACACIONES","Y7","TP COMPENSACIÓN ORDINARIA","COMPORD","1;2;3;4;5;6",null,"TP SALARIAL","SAL","COMISIONES",null,"Beneficios adicionales al trabajador pagados por el empleador a entidades"]
["CE",3,3,null,null,"LIQUIDACIÓN",3,2,"LEY 590/2000 AÑO 3",null,null,null,"TI",2009,3,null,null,"19","PublicaSind",null,"1 Pública","1 Empleador.",11,"PublicaEmp","TP VACACIONES TERMINACION DE CONTRATO","Y8","TP COMPENSACIÓN EXTRAORDINARIA","COMPEXT","1;2;3;4",null,"TP SALARIAL","SAL","HORAS EXTRAS",null,"Incapacidades"]
["TI",4,4,null,null,"RECURSO",4,3,"LEY 1429 Col AÑO 1,2",null,null,null,"PA",2010,4,null,null,"21","PrivadaEmp",null,"1 Pública","1 Empleador.",11,"PublicaEmp","TP LICENCIA REMUNERADA","Y9","TP NO COMPENSACIÓN MARCADA COMO COMP.EXTRAORDINARIA","NOCOMPX","1;2;3;4",null,"TP SALARIAL","SAL","BONIFICACIONES",null,"Permiso o licencia remunerada"]
["PA",5,5,null,null,null,12,4,"LEY 1429 Col AÑO 3",null,null,null,null,2011,5,null,null,"22","PrivadaInd",null,"1 Pública","1 Empleador.",11,"PublicaEmp","TP NO SALARIAL PUBLICA","Y10","TP INCAPACIDAD","INCAP","1;2",null,"TP SALARIAL","SAL","PRIMAS",null,"Vacaciones"]
[null,null,6,null,null,null,15,5,"LEY 1429 Col AÑO 4",null,null,null,null,2012,6,null,null,"24","PrivadaAgrem",null,"1 Pública","1 Empleador.",11,"PublicaEmp","TP NO SALARIAL PUBLICA NO ACEPTADO UGPP","Y11","TP VACACIONES","VACA","4;5;6",null,"TP SALARIAL","SAL","VIATICOS"]
[null,null,7,null,null,null,16,6,"LEY 1429 Col AÑO 5",null,null,null,null,2013,7,null,null,"25","PrivadaCTA",null,"1 Pública","1 Empleador.",11,"PublicaEmp","TP PRESTACIONES","Y12","TP VACACIONES TERMINACION DE CONTRATO","VACAT","4;5;6",null,"TP SALARIAL","SAL","AUXILIOS"]
[null,null,8,null,null,null,18,9,"LEY 1429 AGV AÑO 1 - 8",null,null,null,null,2014,8,null,null,"27","PrivadaHorg",null,"1 Pública","3 Entidades o Universidades Públicas con régimen especial en Salud.",13,"PublicaUniv","TP SALARIAL","Y13","TP CONTRATISTA","CONTRA","1;2;3",null,"TP SALARIAL","SAL","OTROS PAGOS"]
[null,null,null,null,null,null,19,10,"LEY 1429 AGV AÑO 9",null,null,null,null,2015,9,null,null,"29","PrivadaSind",null,"1 Pública","3 Entidades o Universidades Públicas con régimen especial en Salud.",13,"PublicaUniv","TP INCAPACIDAD","Y14","TP NO CONTRATISTA","NOCONTRA","1;2",null,"TP NO SALARIAL","NOSAL","BONIFICACIONES"]
[null,null,null,null,null,null,20,11,"LEY 1429 AGV AÑO 10",null,null,null,null,null,10,null,null,"31","MixtaEmp",null,"1 Pública","3 Entidades o Universidades Públicas con régimen especial en Salud.",13,"PublicaUniv","TP VACACIONES","Y15","TP PRESTACIONES","PRESTAC",null,null,"TP NO SALARIAL","NOSAL","PRIMAS"]
[null,null,null,null,null,null,21,12,"Soc.declaradas ZF. Art20 Ley1607",null,null,null,null,null,11,null,null,"39","MixtaSind",null,"1 Pública","3 Entidades o Universidades Públicas con régimen especial en Salud.",13,"PublicaUniv","TP VACACIONES TERMINACION DE CONTRATO","Y16","TP NO SALARIAL","NOSAL",null,null,"TP NO SALARIAL","NOSAL","VIATICOS"]
[null,null,null,null,null,null,22,null,"Excepción SENA Art.181,Ley 223/95",null,null,null,null,null,12,null,null,"46","OrgMisionD",null,"1 Pública","3 Entidades o Universidades Públicas con régimen especial en Salud.",13,"PublicaUniv","TP LICENCIA REMUNERADA","Y17","TP NO COMPENSACIÓN","NOCOMP",null,null,"TP NO SALARIAL","NOSAL","AUXILIOS"]
[null,null,null,null,null,null,30,null,"Conv.Sub.Fam.Art.17Ley 344/96",null,null,null,null,null,null,null,null,"56","EntMisionD",null,"1 Pública","3 Entidades o Universidades Públicas con régimen especial en Salud.",13,"PublicaUniv","TP NO SALARIAL PUBLICA","Y18","TP LICENCIA REMUNERADA","LICREM",null,null,"TP NO SALARIAL","NOSAL","OTROS PAGOS"]
[null,null,null,null,null,null,31,null,null,null,null,null,null,null,null,null,null,null,null,null,"1 Pública","3 Entidades o Universidades Públicas con régimen especial en Salud.",13,"PublicaUniv","TP NO SALARIAL PUBLICA NO ACEPTADO UGPP","Y19","TP NO SALARIAL PUBLICA","NOSALPUB",null,null,"TP NO SALARIAL MARCADO SALARIAL POR LA UGPP","NOSALX","BONIFICACIONES"]
[null,null,null,null,null,null,32,null,null,null,null,null,null,null,null,null,null,null,null,null,"1 Pública","3 Entidades o Universidades Públicas con régimen especial en Salud.",13,"PublicaUniv","TP PRESTACIONES","Y20","TP NO SALARIAL PUBLICA NO ACEPTADO UGPP","NOSALPUBX",null,null,"TP NO SALARIAL MARCADO SALARIAL POR LA UGPP","NOSALX","PRIMAS"]
[null,null,null,null,null,null,33,null,null,null,null,null,null,null,null,null,null,null,null,null,"1 Pública","8 Pagador de aportes de los concejales municipales o distritales.",18,"PublicaConc","TP SALARIAL","Y21",null,null,null,null,"TP NO SALARIAL MARCADO SALARIAL POR LA UGPP","NOSALX","VIATICOS"]
[null,null,null,null,null,null,34,null,null,null,null,null,null,null,null,null,null,null,null,null,"1 Pública","8 Pagador de aportes de los concejales municipales o distritales.",18,"PublicaConc","TP INCAPACIDAD","Y22",null,null,null,null,"TP NO SALARIAL MARCADO SALARIAL POR LA UGPP","NOSALX","AUXILIOS"]
[null,null,null,null,null,null,35,null,null,null,null,null,null,null,null,null,null,null,null,null,"1 Pública","8 Pagador de aportes de los concejales municipales o distritales.",18,"PublicaConc","TP VACACIONES","Y23",null,null,null,null,"TP NO SALARIAL MARCADO SALARIAL POR LA UGPP","NOSALX","OTROS PAGOS"]
[null,null,null,null,null,null,36,null,null,null,null,null,null,null,null,null,null,null,null,null,"1 Pública","8 Pagador de aportes de los concejales municipales o distritales.",18,"PublicaConc","TP VACACIONES TERMINACION DE CONTRATO","Y24",null,null,null,null,"TP COMPENSACIÓN ORDINARIA","COMPORD","COMP. ORDINARIA\n"]
[null,"Publica","X",null,null,null,40,null,null,null,null,null,null,null,null,null,null,null,null,null,"1 Pública","8 Pagador de aportes de los concejales municipales o distritales.",18,"PublicaConc","TP LICENCIA REMUNERADA","Y25",null,null,null,null,"TP COMPENSACIÓN EXTRAORDINARIA","COMPEXT","COMP. EXTRAORDINARIA\n"]
[null,"Publica",null,null,null,null,41,null,null,null,null,null,null,null,null,null,null,null,null,null,"1 Pública","8 Pagador de aportes de los concejales municipales o distritales.",18,"PublicaConc","TP NO SALARIAL PUBLICA","Y26",null,null,null,null,"TP NO COMPENSACIÓN","NOCOMP","BONIFICACIONES"]
[null,"No_Publica",null,null,null,null,42,null,null,null,null,null,null,null,null,null,null,null,null,null,"1 Pública","8 Pagador de aportes de los concejales municipales o distritales.",18,"PublicaConc","TP NO SALARIAL PUBLICA NO ACEPTADO UGPP","Y27",null,null,null,null,"TP NO COMPENSACIÓN","NOCOMP","PRIMAS"]
[null,null,null,null,null,null,43,null,null,null,null,null,null,null,null,null,null,null,null,null,"1 Pública","8 Pagador de aportes de los concejales municipales o distritales.",18,"PublicaConc","TP PRESTACIONES","Y28",null,null,null,null,"TP NO COMPENSACIÓN","NOCOMP","VIATICOS"]
[null,null,null,null,null,null,44,null,null,null,null,null,null,null,null,null,null,null,null,null,"1 Pública","9 Pagador de aportes contrato sindical",19,"PublicaSind","TP SALARIAL","Y29",null,null,null,null,"TP NO COMPENSACIÓN","NOCOMP","AUXILIOS"]
[null,null,null,null,null,null,45,null,null,null,null,null,null,null,null,null,null,null,null,null,"1 Pública","9 Pagador de aportes contrato sindical",19,"PublicaSind","TP INCAPACIDAD","Y30",null,null,null,null,"TP NO COMPENSACIÓN","NOCOMP","OTROS PAGOS"]
[null,null,null,null,null,null,47,null,null,null,null,null,null,null,null,null,null,null,null,null,"1 Pública","9 Pagador de aportes contrato sindical",19,"PublicaSind","TP VACACIONES","Y31",null,null,null,null,"TP NO COMPENSACIÓN MARCADA COMO COMP.EXTRAORDINARIA","NOCOMPX","BONIFICACIONES"]
[null,null,null,null,null,null,51,null,null,null,null,null,null,null,null,null,null,null,null,null,"1 Pública","9 Pagador de aportes contrato sindical",19,"PublicaSind","TP VACACIONES TERMINACION DE CONTRATO","Y32",null,null,null,null,"TP NO COMPENSACIÓN MARCADA COMO COMP.EXTRAORDINARIA","NOCOMPX","PRIMAS"]
[null,null,null,null,null,null,52,null,null,null,null,null,null,null,null,null,null,null,null,null,"1 Pública","9 Pagador de aportes contrato sindical",19,"PublicaSind","TP LICENCIA REMUNERADA","Y33",null,null,null,null,"TP NO COMPENSACIÓN MARCADA COMO COMP.EXTRAORDINARIA","NOCOMPX","VIATICOS"]
[null,null,null,null,null,null,53,null,null,null,null,null,null,null,null,null,null,null,null,null,"1 Pública","9 Pagador de aportes contrato sindical",19,"PublicaSind","TP NO SALARIAL PUBLICA","Y34",null,null,null,null,"TP NO COMPENSACIÓN MARCADA COMO COMP.EXTRAORDINARIA","NOCOMPX","AUXILIOS"]
[null,null,null,null,null,null,54,null,null,null,null,null,null,null,null,null,null,null,null,null,"1 Pública","9 Pagador de aportes contrato sindical",19,"PublicaSind","TP NO SALARIAL PUBLICA NO ACEPTADO UGPP","Y35",null,null,null,null,"TP NO COMPENSACIÓN MARCADA COMO COMP.EXTRAORDINARIA","NOCOMPX","OTROS PAGOS"]
[null,null,null,null,null,null,null,null,null,null,null,null,null,null,null,null,null,null,null,null,"1 Pública","9 Pagador de aportes contrato sindical",19,"PublicaSind","TP PRESTACIONES","Y36",null,null,null,null,"TP INCAPACIDAD","INCAP","INCAPACIDADES\n"]
[null,null,null,null,null,null,null,null,null,null,null,null,null,null,null,null,null,null,null,null,"2 Privada","1 Empleador.",21,"PrivadaEmp","TP SALARIAL","Y37",null,null,null,null,"TP VACACIONES","VACA","VACACIONES\n"]
[null,null,null,null,null,null,null,null,null,null,null,null,null,null,null,null,null,null,null,null,"2 Privada","1 Empleador.",21,"PrivadaEmp","TP NO SALARIAL","Y38",null,null,null,null,"TP VACACIONES TERMINACION DE CONTRATO","VACAT","VACACIONES TERMINACION DE CONTRATO"]
[null,null,null,null,null,null,null,null,null,null,null,null,null,null,null,null,null,null,null,null,"2 Privada","1 Empleador.",21,"PrivadaEmp","TP NO SALARIAL MARCADO SALARIAL POR LA UGPP","Y39",null,null,null,null,"TP LICENCIA REMUNERADA","LICREM","LICENCIA REMUNERADA"]
[null,null,null,null,null,null,null,null,null,null,null,null,null,null,null,null,null,null,null,null,"2 Privada","1 Empleador.",21,"PrivadaEmp","TP INCAPACIDAD","Y40",null,null,null,null,"TP PRESTACIONES","PRESTAC","CESANTIAS"]
[null,null,null,null,null,null,null,null,null,null,null,null,null,null,null,null,null,null,null,null,"2 Privada","1 Empleador.",21,"PrivadaEmp","TP VACACIONES","Y41",null,null,null,null,"TP PRESTACIONES","PRESTAC","INTERESES DE CESANTIAS"]
[null,null,null,null,null,null,null,null,null,null,null,null,null,null,null,null,null,null,null,null,"2 Privada","1 Empleador.",21,"PrivadaEmp","TP VACACIONES TERMINACION DE CONTRATO","Y42",null,null,null,null,"TP PRESTACIONES","PRESTAC","PRIMAS"]
[null,null,null,null,null,null,null,null,null,null,null,null,null,null,null,null,null,null,null,null,"2 Privada","1 Empleador.",21,"PrivadaEmp","TP LICENCIA REMUNERADA","Y43",null,null,null,null,"TP NO SALARIAL PUBLICA","NOSALPUB","BONIFICACIONES"]
[null,null,null,null,null,null,null,null,null,null,null,null,null,null,null,null,null,null,null,null,"2 Privada","1 Empleador.",21,"PrivadaEmp","TP PRESTACIONES","Y44",null,null,null,null,"TP NO SALARIAL PUBLICA","NOSALPUB","PRIMAS"]
[null,null,null,null,null,null,null,null,null,null,null,null,null,null,null,null,null,null,null,null,"2 Privada","2 Independiente.",22,"PrivadaInd","TP SALARIAL","Y45",null,null,null,null,"TP NO SALARIAL PUBLICA","NOSALPUB","VIATICOS"]
[null,null,null,null,null,null,null,null,null,null,null,null,null,null,null,null,null,null,null,null,"2 Privada","2 Independiente.",22,"PrivadaInd","TP INCAPACIDAD","Y46",null,null,null,null,"TP NO SALARIAL PUBLICA","NOSALPUB","AUXILIOS"]
[null,null,null,null,null,null,null,null,null,null,null,null,null,null,null,null,null,null,null,null,"2 Privada","2 Independiente.",22,"PrivadaInd","TP VACACIONES","Y47",null,null,null,null,"TP NO SALARIAL PUBLICA","NOSALPUB","OTROS PAGOS"]
[null,null,null,null,null,null,null,null,null,null,null,null,null,null,null,null,null,null,null,null,"2 Privada","2 Independiente.",22,"PrivadaInd","TP NO CONTRATISTA","Y48",null,null,null,null,"TP NO SALARIAL PUBLICA NO ACEPTADO UGPP","NOSALPUBX","BONIFICACIONES"]
[null,null,null,null,null,null,null,null,null,null,null,null,null,null,null,null,null,null,null,null,"2 Privada","2 Independiente.",22,"PrivadaInd","TP PRESTACIONES","Y49",null,null,null,null,"TP NO SALARIAL PUBLICA NO ACEPTADO UGPP","NOSALPUBX","PRIMAS"]
[null,null,null,null,null,null,null,null,null,null,null,null,null,null,null,null,null,null,null,null,"2 Privada","4 Agremiaciones o asociaciones.",24,"PrivadaAgrem","TP SALARIAL","Y50",null,null,null,null,"TP NO SALARIAL PUBLICA NO ACEPTADO UGPP","NOSALPUBX","VIATICOS"]
[null,null,null,null,null,null,null,null,null,null,null,null,null,null,null,null,null,null,null,null,"2 Privada","4 Agremiaciones o asociaciones.",24,"PrivadaAgrem","TP NO SALARIAL","Y51",null,null,null,null,"TP NO SALARIAL PUBLICA NO ACEPTADO UGPP","NOSALPUBX","AUXILIOS"]
[null,null,null,null,null,null,null,null,null,null,null,null,null,null,null,null,null,null,null,null,"2 Privada","4 Agremiaciones o asociaciones.",24,"PrivadaAgrem","TP NO SALARIAL MARCADO SALARIAL POR LA UGPP","Y52",null,null,null,null,"TP NO SALARIAL PUBLICA NO ACEPTADO UGPP","NOSALPUBX","OTROS PAGOS"]
[null,null,null,null,null,null,null,null,null,null,null,null,null,null,null,null,null,null,null,null,"2 Privada","4 Agremiaciones o asociaciones.",24,"PrivadaAgrem","TP INCAPACIDAD","Y53",null,null,null,null,"TP CONTRATISTA","CONTRA","SUELDOS"]
[null,null,null,null,null,null,null,null,null,null,null,null,null,null,null,null,null,null,null,null,"2 Privada","4 Agremiaciones o asociaciones.",24,"PrivadaAgrem","TP VACACIONES","Y54",null,null,null,null,"TP NO CONTRATISTA","NOCONTRA","SUELDOS"]
[null,null,null,null,null,null,null,null,null,null,null,null,null,null,null,null,null,null,null,null,"2 Privada","4 Agremiaciones o asociaciones.",24,"PrivadaAgrem","TP VACACIONES TERMINACION DE CONTRATO","Y55"]
[null,null,null,null,null,null,null,null,null,null,null,null,null,null,null,null,null,null,null,null,"2 Privada","4 Agremiaciones o asociaciones.",24,"PrivadaAgrem","TP LICENCIA REMUNERADA","Y56"]
[null,null,null,null,null,null,null,null,null,null,null,null,null,null,null,null,null,null,null,null,"2 Privada","4 Agremiaciones o asociaciones.",24,"PrivadaAgrem","TP CONTRATISTA","Y57"]
[null,null,null,null,null,null,null,null,null,null,null,null,null,null,null,null,null,null,null,null,"2 Privada","4 Agremiaciones o asociaciones.",24,"PrivadaAgrem","TP NO CONTRATISTA","Y58"]
[null,null,null,null,null,null,null,null,null,null,null,null,null,null,null,null,null,null,null,null,"2 Privada","4 Agremiaciones o asociaciones.",24,"PrivadaAgrem","TP PRESTACIONES","Y59"]
[null,null,null,null,null,null,null,null,null,null,null,null,null,null,null,null,null,null,null,null,"2 Privada","5 Cooperativas y Precooperativas de Trabajo Asociado",25,"PrivadaCTA","TP SALARIAL","Y60"]
[null,null,null,null,null,null,null,null,null,null,null,null,null,null,null,null,null,null,null,null,"2 Privada","5 Cooperativas y Precooperativas de Trabajo Asociado",25,"PrivadaCTA","TP NO SALARIAL","Y61"]
[null,null,null,null,null,null,null,null,null,null,null,null,null,null,null,null,null,null,null,null,"2 Privada","5 Cooperativas y Precooperativas de Trabajo Asociado",25,"PrivadaCTA","TP NO SALARIAL MARCADO SALARIAL POR LA UGPP","Y62"]
[null,null,null,null,null,null,null,null,null,null,null,null,null,null,null,null,null,null,null,null,"2 Privada","5 Cooperativas y Precooperativas de Trabajo Asociado",25,"PrivadaCTA","TP COMPENSACIÓN ORDINARIA","Y63"]
[null,null,null,null,null,null,null,null,null,null,null,null,null,null,null,null,null,null,null,null,"2 Privada","5 Cooperativas y Precooperativas de Trabajo Asociado",25,"PrivadaCTA","TP COMPENSACIÓN EXTRAORDINARIA","Y64"]
[null,null,null,null,null,null,null,null,null,null,null,null,null,null,null,null,null,null,null,null,"2 Privada","5 Cooperativas y Precooperativas de Trabajo Asociado",25,"PrivadaCTA","TP NO COMPENSACIÓN","Y65"]
[null,null,null,null,null,null,null,null,null,null,null,null,null,null,null,null,null,null,null,null,"2 Privada","5 Cooperativas y Precooperativas de Trabajo Asociado",25,"PrivadaCTA","TP NO COMPENSACIÓN MARCADA COMO COMP.EXTRAORDINARIA","Y66"]
[null,null,null,null,null,null,null,null,null,null,null,null,null,null,null,null,null,null,null,null,"2 Privada","5 Cooperativas y Precooperativas de Trabajo Asociado",25,"PrivadaCTA","TP INCAPACIDAD","Y67"]
[null,null,null,null,null,null,null,null,null,null,null,null,null,null,null,null,null,null,null,null,"2 Privada","5 Cooperativas y Precooperativas de Trabajo Asociado",25,"PrivadaCTA","TP VACACIONES","Y68"]
[null,null,null,null,null,null,null,null,null,null,null,null,null,null,null,null,null,null,null,null,"2 Privada","5 Cooperativas y Precooperativas de Trabajo Asociado",25,"PrivadaCTA","TP VACACIONES TERMINACION DE CONTRATO","Y69"]
[null,null,null,null,null,null,null,null,null,null,null,null,null,null,null,null,null,null,null,null,"2 Privada","5 Cooperativas y Precooperativas de Trabajo Asociado",25,"PrivadaCTA","TP LICENCIA REMUNERADA","Y70"]
[null,null,null,null,null,null,null,null,null,null,null,null,null,null,null,null,null,null,null,null,"2 Privada","5 Cooperativas y Precooperativas de Trabajo Asociado",25,"PrivadaCTA","TP PRESTACIONES","Y71"]
[null,null,null,null,null,null,null,null,null,null,null,null,null,null,null,null,null,null,null,null,"2 Privada","7 Organizaciones Administradoras del Programa de Hogares de Bienestar.",27,"PrivadaHorg","TP SALARIAL","Y72"]
[null,null,null,null,null,null,null,null,null,null,null,null,null,null,null,null,null,null,null,null,"2 Privada","7 Organizaciones Administradoras del Programa de Hogares de Bienestar.",27,"PrivadaHorg","TP NO SALARIAL","Y73"]
[null,null,null,null,null,null,null,null,null,null,null,null,null,null,null,null,null,null,null,null,"2 Privada","7 Organizaciones Administradoras del Programa de Hogares de Bienestar.",27,"PrivadaHorg","TP NO SALARIAL MARCADO SALARIAL POR LA UGPP","Y74"]
[null,null,null,null,null,null,null,null,null,null,null,null,null,null,null,null,null,null,null,null,"2 Privada","7 Organizaciones Administradoras del Programa de Hogares de Bienestar.",27,"PrivadaHorg","TP INCAPACIDAD","Y75"]
[null,null,null,null,null,null,null,null,null,null,null,null,null,null,null,null,null,null,null,null,"2 Privada","7 Organizaciones Administradoras del Programa de Hogares de Bienestar.",27,"PrivadaHorg","TP VACACIONES","Y76"]
[null,null,null,null,null,null,null,null,null,null,null,null,null,null,null,null,null,null,null,null,"2 Privada","7 Organizaciones Administradoras del Programa de Hogares de Bienestar.",27,"PrivadaHorg","TP VACACIONES TERMINACION DE CONTRATO","Y77"]
[null,null,null,null,null,null,null,null,null,null,null,null,null,null,null,null,null,null,null,null,"2 Privada","7 Organizaciones Administradoras del Programa de Hogares de Bienestar.",27,"PrivadaHorg","TP LICENCIA REMUNERADA","Y78"]
[null,null,null,null,null,null,null,null,null,null,null,null,null,null,null,null,null,null,null,null,"2 Privada","7 Organizaciones Administradoras del Programa de Hogares de Bienestar.",27,"PrivadaHorg","TP PRESTACIONES","Y79"]
[null,null,null,null,null,null,null,null,null,null,null,null,null,null,null,null,null,null,null,null,"2 Privada","9 Pagador de aportes contrato sindical",29,"PrivadaSind","TP SALARIAL","Y80"]
[null,null,null,null,null,null,null,null,null,null,null,null,null,null,null,null,null,null,null,null,"2 Privada","9 Pagador de aportes contrato sindical",29,"PrivadaSind","TP NO SALARIAL","Y81"]
[null,null,null,null,null,null,null,null,null,null,null,null,null,null,null,null,null,null,null,null,"2 Privada","9 Pagador de aportes contrato sindical",29,"PrivadaSind","TP NO SALARIAL MARCADO SALARIAL POR LA UGPP","Y82"]
[null,null,null,null,null,null,null,null,null,null,null,null,null,null,null,null,null,null,null,null,"2 Privada","9 Pagador de aportes contrato sindical",29,"PrivadaSind","TP INCAPACIDAD","Y83"]
[null,null,null,null,null,null,null,null,null,null,null,null,null,null,null,null,null,null,null,null,"2 Privada","9 Pagador de aportes contrato sindical",29,"PrivadaSind","TP VACACIONES","Y84"]
[null,null,null,null,null,null,null,null,null,null,null,null,null,null,null,null,null,null,null,null,"2 Privada","9 Pagador de aportes contrato sindical",29,"PrivadaSind","TP VACACIONES TERMINACION DE CONTRATO","Y85"]
[null,null,null,null,null,null,null,null,null,null,null,null,null,null,null,null,null,null,null,null,"2 Privada","9 Pagador de aportes contrato sindical",29,"PrivadaSind","TP LICENCIA REMUNERADA","Y86"]
[null,null,null,null,null,null,null,null,null,null,null,null,null,null,null,null,null,null,null,null,"2 Privada","9 Pagador de aportes contrato sindical",29,"PrivadaSind","TP PRESTACIONES","Y87"]
[null,null,null,null,null,null,null,null,null,null,null,null,null,null,null,null,null,null,null,null,"3 Mixta","1 Empleador.",31,"MixtaEmp","TP SALARIAL","Y88"]
[null,null,null,null,null,null,null,null,null,null,null,null,null,null,null,null,null,null,null,null,"3 Mixta","1 Empleador.",31,"MixtaEmp","TP NO SALARIAL","Y89"]
[null,null,null,null,null,null,null,null,null,null,null,null,null,null,null,null,null,null,null,null,"3 Mixta","1 Empleador.",31,"MixtaEmp","TP NO SALARIAL MARCADO SALARIAL POR LA UGPP","Y90"]
[null,null,null,null,null,null,null,null,null,null,null,null,null,null,null,null,null,null,null,null,"3 Mixta","1 Empleador.",31,"MixtaEmp","TP INCAPACIDAD","Y91"]
[null,null,null,null,null,null,null,null,null,null,null,null,null,null,null,null,null,null,null,null,"3 Mixta","1 Empleador.",31,"MixtaEmp","TP VACACIONES","Y92"]
[null,null,null,null,null,null,null,null,null,null,null,null,null,null,null,null,null,null,null,null,"3 Mixta","1 Empleador.",31,"MixtaEmp","TP VACACIONES TERMINACION DE CONTRATO","Y93"]
[null,null,null,null,null,null,null,null,null,null,null,null,null,null,null,null,null,null,null,null,"3 Mixta","1 Empleador.",31,"MixtaEmp","TP LICENCIA REMUNERADA","Y94"]
[null,null,null,null,null,null,null,null,null,null,null,null,null,null,null,null,null,null,null,null,"3 Mixta","1 Empleador.",31,"MixtaEmp","TP PRESTACIONES","Y95"]
[null,null,null,null,null,null,null,null,null,null,null,null,null,null,null,null,null,null,null,null,"3 Mixta","9 Pagador de aportes contrato sindical",39,"MixtaSind","TP SALARIAL","Y96"]
[null,null,null,null,null,null,null,null,null,null,null,null,null,null,null,null,null,null,null,null,"3 Mixta","9 Pagador de aportes contrato sindical",39,"MixtaSind","TP NO SALARIAL","Y97"]
[null,null,null,null,null,null,null,null,null,null,null,null,null,null,null,null,null,null,null,null,"3 Mixta","9 Pagador de aportes contrato sindical",39,"MixtaSind","TP NO SALARIAL MARCADO SALARIAL POR LA UGPP","Y98"]
[null,null,null,null,null,null,null,null,null,null,null,null,null,null,null,null,null,null,null,null,"3 Mixta","9 Pagador de aportes contrato sindical",39,"MixtaSind","TP INCAPACIDAD","Y99"]
[null,null,null,null,null,null,null,null,null,null,null,null,null,null,null,null,null,null,null,null,"3 Mixta","9 Pagador de aportes contrato sindical",39,"MixtaSind","TP VACACIONES","Y100"]
[null,null,null,null,null,null,null,null,null,null,null,null,null,null,null,null,null,null,null,null,"3 Mixta","9 Pagador de aportes contrato sindical",39,"MixtaSind","TP VACACIONES TERMINACION DE CONTRATO","Y101"]
[null,null,null,null,null,null,null,null,null,null,null,null,null,null,null,null,null,null,null,null,"3 Mixta","9 Pagador de aportes contrato sindical",39,"MixtaSind","TP LICENCIA REMUNERADA","Y102"]
[null,null,null,null,null,null,null,null,null,null,null,null,null,null,null,null,null,null,null,null,"3 Mixta","9 Pagador de aportes contrato sindical",39,"MixtaSind","TP PRESTACIONES","Y103"]
[null,null,null,null,null,null,null,null,null,null,null,null,null,null,null,null,null,null,null,null,"4 Organismos multilaterales","6 Misiones diplomáticas, consulares o de organismos multilaterales no sometidos a la legislación colombiana.",46,"OrgMisionD","TP SALARIAL","Y104"]
[null,null,null,null,null,null,null,null,null,null,null,null,null,null,null,null,null,null,null,null,"4 Organismos multilaterales","6 Misiones diplomáticas, consulares o de organismos multilaterales no sometidos a la legislación colombiana.",46,"OrgMisionD","TP NO SALARIAL","Y105"]
[null,null,null,null,null,null,null,null,null,null,null,null,null,null,null,null,null,null,null,null,"4 Organismos multilaterales","6 Misiones diplomáticas, consulares o de organismos multilaterales no sometidos a la legislación colombiana.",46,"OrgMisionD","TP NO SALARIAL MARCADO SALARIAL POR LA UGPP","Y106"]
[null,null,null,null,null,null,null,null,null,null,null,null,null,null,null,null,null,null,null,null,"4 Organismos multilaterales","6 Misiones diplomáticas, consulares o de organismos multilaterales no sometidos a la legislación colombiana.",46,"OrgMisionD","TP INCAPACIDAD","Y107"]
[null,null,null,null,null,null,null,null,null,null,null,null,null,null,null,null,null,null,null,null,"4 Organismos multilaterales","6 Misiones diplomáticas, consulares o de organismos multilaterales no sometidos a la legislación colombiana.",46,"OrgMisionD","TP VACACIONES","Y108"]
[null,null,null,null,null,null,null,null,null,null,null,null,null,null,null,null,null,null,null,null,"4 Organismos multilaterales","6 Misiones diplomáticas, consulares o de organismos multilaterales no sometidos a la legislación colombiana.",46,"OrgMisionD","TP VACACIONES TERMINACION DE CONTRATO","Y109"]
[null,null,null,null,null,null,null,null,null,null,null,null,null,null,null,null,null,null,null,null,"4 Organismos multilaterales","6 Misiones diplomáticas, consulares o de organismos multilaterales no sometidos a la legislación colombiana.",46,"OrgMisionD","TP LICENCIA REMUNERADA","Y110"]
[null,null,null,null,null,null,null,null,null,null,null,null,null,null,null,null,null,null,null,null,"4 Organismos multilaterales","6 Misiones diplomáticas, consulares o de organismos multilaterales no sometidos a la legislación colombiana.",46,"OrgMisionD","TP PRESTACIONES","Y111"]
[null,null,null,null,null,null,null,null,null,null,null,null,null,null,null,null,null,null,null,null,"5 Entidades de derecho público no sometidas a la legislación colombiana","6 Misiones diplomáticas, consulares o de organismos multilaterales no sometidos a la legislación colombiana.",56,"EntMisionD","TP SALARIAL","Y112"]
[null,null,null,null,null,null,null,null,null,null,null,null,null,null,null,null,null,null,null,null,"5 Entidades de derecho público no sometidas a la legislación colombiana","6 Misiones diplomáticas, consulares o de organismos multilaterales no sometidos a la legislación colombiana.",56,"EntMisionD","TP NO SALARIAL","Y113"]
[null,null,null,null,null,null,null,null,null,null,null,null,null,null,null,null,null,null,null,null,"5 Entidades de derecho público no sometidas a la legislación colombiana","6 Misiones diplomáticas, consulares o de organismos multilaterales no sometidos a la legislación colombiana.",56,"EntMisionD","TP NO SALARIAL MARCADO SALARIAL POR LA UGPP","Y114"]
[null,null,null,null,null,null,null,null,null,null,null,null,null,null,null,null,null,null,null,null,"5 Entidades de derecho público no sometidas a la legislación colombiana","6 Misiones diplomáticas, consulares o de organismos multilaterales no sometidos a la legislación colombiana.",56,"EntMisionD","TP INCAPACIDAD","Y115"]
[null,null,null,null,null,null,null,null,null,null,null,null,null,null,null,null,null,null,null,null,"5 Entidades de derecho público no sometidas a la legislación colombiana","6 Misiones diplomáticas, consulares o de organismos multilaterales no sometidos a la legislación colombiana.",56,"EntMisionD","TP VACACIONES","Y116"]
[null,null,null,null,null,null,null,null,null,null,null,null,null,null,null,null,null,null,null,null,"5 Entidades de derecho público no sometidas a la legislación colombiana","6 Misiones diplomáticas, consulares o de organismos multilaterales no sometidos a la legislación colombiana.",56,"EntMisionD","TP VACACIONES TERMINACION DE CONTRATO","Y117"]
[null,null,null,null,null,null,null,null,null,null,null,null,null,null,null,null,null,null,null,null,"5 Entidades de derecho público no sometidas a la legislación colombiana","6 Misiones diplomáticas, consulares o de organismos multilaterales no sometidos a la legislación colombiana.",56,"EntMisionD","TP LICENCIA REMUNERADA","Y118"]
[null,null,null,null,null,null,null,null,null,null,null,null,null,null,null,null,null,null,null,null,"5 Entidades de derecho público no sometidas a la legislación colombiana","6 Misiones diplomáticas, consulares o de organismos multilaterales no sometidos a la legislación colombiana.",56,"EntMisionD","TP PRESTACIONES","Y119"]